[Event "Najdorf Memorial-A 2022"]
[Site "Warsaw"]
[Date "2022.07.09"]
[Round "1.1"]
[White "Noe, Christopher"]
[Black "Kazmierowski, Tymon"]
[Result "1-0"]
[ECO "E12"]
[WhiteElo "2505"]
[BlackElo "1961"]
[Annotator "TA"]
[PlyCount "81"]
[EventDate "2022.07.09"]
[EventType "swiss"]
[EventCountry "POL"]
[SourceTitle "playchess.com"]
[Source "ChessBase"]
[SourceQuality "1"]
[TimeControl "40/5400+30:1800+30"]

{[%evp 12,81,4,4,8,1,0,-30,40,22,29,15,17,31,21,34,31,23,47,16,22,23,57,63,67,66,91,79,69,94,83,85,87,78,86,98,134,53,53,53,56,56,55,41,44,47,59,58,141,125,179,117,236,239,244,239,256,227,267,289,277,281,664,639,637,625,803,765,1364,1327,1168,1094]} 1. d4 {[%emt 0:00:05]} Nf6 {[%emt 0:00:06]} 2. c4 {[%emt 0:00:05]} e6 {[%emt 0:00:11]} 3. Nf3 {[%emt 0:00:45]} b6 {[%emt 0:00:13]} 4. Bf4 {[%emt 0:01:05]} Bb7 {[%emt 0:01:05]} 5. e3 {[%emt 0:00:06]} Bb4+ {[%emt 0:02:03]} 6. Nfd2 {[%emt 0:00:07]} O-O {[%emt 0:01:33]} 7. a3 {[%emt 0:00:04]} Bxd2+ {[%emt 0:01:11] E12: Queen's Indian: Unusual White 4th moves, 4 a3, 4 Nc3 Bb7 5 a3 and 4 Nc3 Bb7 .} 8. Nxd2 {[%emt 0:00:39]} d6 {[%emt 0:00:55]} 9. Be2 {[%emt 0:06:09]} Nbd7 {[%emt 0:04:50]} ({Black should try} 9... Bxg2 $11 10. Rg1 Bc6) 10. O-O $14 {[%emt 0:03:52] [#]} e5 $146 {[%emt 0:02:44]} ({Predecessor:} 10... a5 11. Re1 a4 12. Bd3 Ra5 13. e4 e5 14. Be3 Re8 15. d5 Nc5 16. Bc2 Nfd7 {1-0 (35) Babula,V (2540)-Hjartarson,J (2545) Baku 2016}) 11. Bg5 {[%emt 0:00:05]} exd4 {[%emt 0:05:48]} 12. exd4 {[%emt 0:00:14]} h6 {[%emt 0:00:35]} 13. Bh4 {[%emt 0:00:06]} Re8 {[%emt 0:00:55]} 14. Bd3 {[%emt 0:04:36]} Qe7 {[%emt 0:03:28]} 15. Nb1 {[%emt 0:10:14]} c5 {[%emt 0:26:59]} 16. d5 {[%emt 0:14:10]} Ne5 {[%emt 0:02:53]} 17. Nc3 {[%emt 0:00:07]} Nxd3 {[%emt 0:01:26]} 18. Qxd3 {[%emt 0:00:02]} Rad8 {[%emt 0:02:03]} 19. f4 {[%emt 0:24:09]} Qe3+ {[%emt 0:07:19]} 20. Qxe3 {[%emt 0:00:20]} Rxe3 {[%emt 0:00:02]} 21. Bxf6 {[%emt 0:02:30]} gxf6 {[%emt 0:00:24]} 22. Rae1 {[%emt 0:00:05]} Rxe1 {[%emt 0:00:40]} 23. Rxe1 $16 {[%emt 0:00:02][%mdl 4096] Endgame KRB-KRN} Kf8 {[%emt 0:00:17] Prevents Re7.} 24. Ne4 {[%emt 0:04:06] White is more active.} (24. g4 $16) 24... f5 $14 {[%emt 0:02:47] White must now prevent ...Re8.} 25. Nc3 {[%emt 0:03:07]} a6 {[%emt 0:01:58]} (25... Re8 $2 26. Rxe8+ Kxe8 27. Nb5 $18) 26. Rb1 {[%emt 0:07:01]} b5 {[%emt 0:04:51]} 27. b4 {[%emt 0:03:00]} cxb4 {[%emt 0:00:55]} 28. Rxb4 {[%emt 0:00:11]} Rc8 {[%emt 0:00:16]} 29. Kf2 {[%emt 0:02:49]} Kg7 {[%emt 0:06:15]} (29... Rc7 $14) 30. Ke3 $16 {[%emt 0:05:23]} Kg6 {[%emt 0:01:28]} ({Weaker is} 30... Rxc4 31. Rxc4 bxc4 32. Kd4) (30... Kf8 $16 {keeps fighting.}) 31. a4 {[%emt 0:04:25]} (31. Kd3 $1 $18) 31... a5 {[%emt 0:02:38]} (31... Rxc4 $16 32. Rxc4 bxc4) 32. Rxb5 $18 {[%emt 0:00:06]} Rxc4 {[%emt 0:00:04] [#]} 33. Kd3 {[%emt 0:02:36]} ({And not} 33. Rxb7 Rxc3+ 34. Kd2 Rc4 $11) 33... Rb4 {[%emt 0:00:22]} 34. Rxa5 {[%emt 0:00:37]} Rxf4 {[%emt 0:00:25]} 35. Ra7 {[%emt 0:00:13]} Rb4 {[%emt 0:00:52]} 36. a5 {[%emt 0:01:56][%cal Ba4a5,Ba5a6,Ba6a7][%mdl 32] a6 is the strong threat.} f4 $2 {[%emt 0:00:39]} (36... Bc8 37. Ra8 (37. a6 Rb6 $14) 37... Bb7) 37. a6 {[%emt 0:00:04] White is clearly winning.} Bc8 {[%emt 0:00:02] [#]} 38. Ra8 $1 {[%emt 0:00:41]} Bf5+ {[%emt 0:00:51]} 39. Kd2 {[%emt 0:01:58] Hoping for a7.} Rd4+ {[%emt 0:02:38]} 40. Ke1 {[%emt 0:00:00]} Rd3 {[%emt 0:00:00] [#]} 41. a7 $1 {[%emt 0:02:10] Weighted Error Value: White=0.09 (flawless) /Black=0.35} 1-0

[Event "Najdorf Memorial-A 2022"]
[Site "Warsaw"]
[Date "2022.07.09"]
[Round "1.1"]
[White "Kaminski, Jan"]
[Black "Hackner, Oskar A"]
[Result "1-0"]
[ECO "C01"]
[WhiteElo "1870"]
[BlackElo "2178"]
[Annotator "RC"]
[PlyCount "153"]
[EventDate "2022.07.09"]
[EventType "swiss"]
[EventCountry "POL"]
[SourceTitle "playchess.com"]
[Source "ChessBase"]
[SourceQuality "1"]
[TimeControl "40/5400+30:1800+30"]

1. e4 {[%emt 0:00:02]} e6 {[%emt 0:00:09]} 2. d4 {[%emt 0:00:03]} d5 {[%emt 0:00:05]} 3. exd5 {[%emt 0:00:30]} exd5 {[%emt 0:00:06]} 4. c4 {[%emt 0:00:30]} Nf6 {[%emt 0:00:21]} 5. Nc3 {[%emt 0:00:34]} Bb4 {[%emt 0:01:13]} 6. Bd3 {[%emt 0:00:10]} O-O {[%emt 0:00:47]} 7. Nge2 {[%emt 0:00:04]} Be6 {[%emt 0:01:09]} 8. cxd5 {[%emt 0:05:08]} Nxd5 {[%emt 0:00:55]} 9. O-O {[%emt 0:01:30]} Nc6 {[%emt 0:01:42]} 10. Ne4 {[%emt 0:11:48]} h6 {[%emt 0:01:56]} 11. a3 {[%emt 0:01:04]} Be7 {[%emt 0:00:37]} 12. b4 {[%emt 0:05:46]} f5 {[%emt 0:10:24]} 13. Nc5 {[%emt 0:03:04]} Bxc5 {[%emt 0:00:16]} 14. dxc5 {[%emt 0:01:44]} f4 {[%emt 0:16:28]} 15. Bb2 {[%emt 0:09:33]} Qg5 {[%emt 0:05:17]} 16. Qc1 {[%emt 0:09:11]} Bg4 {[%emt 0:10:53]} 17. f3 {[%emt 0:09:27]} Bh3 {[%emt 0:03:48]} 18. Rf2 {[%emt 0:05:13]} Ne3 {[%emt 0:09:45]} 19. g3 {[%emt 0:01:18]} Rae8 {[%emt 0:07:54]} 20. Be4 {[%emt 0:04:22]} h5 {[%emt 0:08:18]} 21. Nxf4 {[%emt 0:05:14]} Rxf4 {[%emt 0:09:27]} 22. Qxe3 {[%emt 0:00:19]} Ref8 {[%emt 0:03:52]} 23. Kh1 {[%emt 0:06:09]} Rg4 {[%emt 0:01:23]} 24. Qxg5 {[%emt 0:04:03]} Rxg5 {[%emt 0:00:04]} 25. f4 {[%emt 0:01:51]} h4 {[%emt 0:00:48]} 26. gxh4 {[%emt 0:02:08]} Rg4 {[%emt 0:00:27]} 27. Bxc6 {[%emt 0:03:47]} bxc6 {[%emt 0:00:08]} 28. Be5 {[%emt 0:00:07]} Rf7 {[%emt 0:00:20]} 29. Rd2 {[%emt 0:03:47]} Rxh4 {[%emt 0:00:54]} 30. Rg1 {[%emt 0:00:14]} Be6 {[%emt 0:00:08]} 31. Rg3 {[%emt 0:00:13]} Bd5+ {[%emt 0:00:45]} 32. Kg1 {[%emt 0:00:01]} a6 {[%emt 0:00:40]} 33. Rdd3 {[%emt 0:00:22]} Kf8 {[%emt 0:00:11]} 34. Rh3 {[%emt 0:00:19]} Rxh3 {[%emt 0:00:31]} 35. Rxh3 {[%emt 0:00:02]} Kg8 {[%emt 0:00:37]} 36. Kf2 {[%emt 0:00:56]} Rd7 {[%emt 0:01:14]} 37. Rd3 {[%emt 0:04:30]} Kf7 {[%emt 0:00:35]} 38. Rg3 {[%emt 0:00:49]} Kf8 {[%emt 0:00:06]} 39. Rd3 {[%emt 0:00:17]} Kf7 {[%emt 0:00:08]} 40. f5 {[%emt 0:00:00]} Re7 {[%emt 0:00:00]} 41. Re3 {[%emt 0:02:08]} Ba2 {[%emt 0:08:15]} 42. Kg3 {[%emt 0:00:51]} Bb1 {[%emt 0:01:17]} 43. Kf4 {[%emt 0:01:18]} Kf8 {[%emt 0:02:36]} 44. Rg3 {[%emt 0:06:04]} Rf7 {[%emt 0:00:19]} 45. Rg5 {[%emt 0:00:06]} Bc2 {[%emt 0:00:30]} 46. h4 {[%emt 0:00:46]} Bd3 {[%emt 0:00:47]} 47. Rh5 {[%emt 0:01:29]} Kg8 {[%emt 0:00:37]} 48. Rg5 {[%emt 0:01:04]} Kf8 {[%emt 0:01:23]} 49. Ke3 {[%emt 0:03:13]} Bb1 {[%emt 0:06:04]} 50. Kf4 {[%emt 0:00:04]} Bc2 {[%emt 0:00:09]} 51. h5 {[%emt 0:02:10]} Bb1 {[%emt 0:00:15]} 52. Bb2 {[%emt 0:06:56]} Bc2 {[%emt 0:00:14]} 53. Be5 {[%emt 0:00:02]} Bb1 {[%emt 0:00:06]} 54. Bc3 {[%emt 0:00:55]} Bc2 {[%emt 0:00:08]} 55. f6 {[%emt 0:00:56]} gxf6 {[%emt 0:00:20]} 56. Rg2 {[%emt 0:00:04]} Bh7 {[%emt 0:01:29]} 57. h6 {[%emt 0:00:17]} Ke7 {[%emt 0:00:41]} 58. Re2+ {[%emt 0:01:22]} Kd7 {[%emt 0:00:24]} 59. Re3 {[%emt 0:00:28]} Bc2 {[%emt 0:00:49]} 60. Rg3 {[%emt 0:00:43]} Bh7 {[%emt 0:00:27]} 61. Rg2 {[%emt 0:00:16]} Ke6 {[%emt 0:00:59]} 62. Rd2 {[%emt 0:00:48]} Ke7 {[%emt 0:00:32]} 63. a4 {[%emt 0:01:31]} Bg6 {[%emt 0:02:05]} 64. Re2+ {[%emt 0:00:19]} Kf8 {[%emt 0:00:41]} 65. Re6 {[%emt 0:01:24]} Bc2 {[%emt 0:01:26]} 66. Rxc6 {[%emt 0:04:35]} Bxa4 {[%emt 0:00:08]} 67. Rxa6 {[%emt 0:00:05]} Bb5 {[%emt 0:03:44]} 68. Rxf6 {[%emt 0:02:09]} Rxf6+ {[%emt 0:00:17]} 69. Bxf6 {[%emt 0:00:01]} Kg8 {[%emt 0:00:11]} 70. c6 {[%emt 0:00:17]} Bxc6 {[%emt 0:00:11]} 71. Be5 {[%emt 0:00:07]} Kh7 {[%emt 0:00:08]} 72. Kg5 {[%emt 0:00:06]} Bb5 {[%emt 0:00:31]} 73. Bxc7 {[%emt 0:00:04]} Bd3 {[%emt 0:00:16]} 74. Bf4 {[%emt 0:00:43]} Kg8 {[%emt 0:00:16]} 75. Kf6 {[%emt 0:00:16]} Kf8 {[%emt 0:00:36]} 76. Bd6+ {[%emt 0:00:12]} Kg8 {[%emt 0:00:09]} 77. Ke7 {[%emt 0:00:13]} 1-0

[Event "Najdorf Memorial-A 2022"]
[Site "Warsaw"]
[Date "2022.07.09"]
[Round "1.2"]
[White "Kaczmarek, Arkadiusz"]
[Black "Zelak, Wladyslaw"]
[Result "1-0"]
[ECO "D37"]
[WhiteElo "2147"]
[BlackElo "1866"]
[Annotator "RC"]
[PlyCount "71"]
[EventDate "2022.07.09"]
[EventType "swiss"]
[EventCountry "POL"]
[SourceTitle "playchess.com"]
[Source "ChessBase"]
[SourceQuality "1"]
[TimeControl "40/5400+30:1800+30"]

1. d4 {[%emt 0:00:04]} Nf6 {[%emt 0:00:08]} 2. c4 {[%emt 0:00:15]} e6 {[%emt 0:00:25]} 3. Nf3 {[%emt 0:00:15]} d5 {[%emt 0:00:12]} 4. Nc3 {[%emt 0:00:20]} Be7 {[%emt 0:00:30]} 5. Bf4 {[%emt 0:00:20]} O-O {[%emt 0:00:26]} 6. e3 {[%emt 0:00:15]} c5 {[%emt 0:01:18]} 7. dxc5 {[%emt 0:00:34]} Bxc5 {[%emt 0:01:19]} 8. Qc2 {[%emt 0:00:21]} Qe7 {[%emt 0:05:01]} 9. O-O-O {[%emt 0:13:54]} dxc4 {[%emt 0:07:14]} 10. Bxc4 {[%emt 0:00:53]} Bd7 {[%emt 0:16:44]} 11. Kb1 {[%emt 0:25:07]} Nc6 {[%emt 0:09:59]} 12. Ng5 {[%emt 0:06:51]} Rac8 {[%emt 0:10:02]} 13. Nce4 {[%emt 0:25:56]} Nxe4 {[%emt 0:00:27]} 14. Nxe4 {[%emt 0:00:36]} Nb4 {[%emt 0:13:13]} 15. Qe2 {[%emt 0:07:04]} Bc6 {[%emt 0:06:44]} 16. Nc3 {[%emt 0:00:25]} Rfd8 {[%emt 0:04:45]} 17. Qg4 {[%emt 0:05:23]} Nd5 {[%emt 0:03:41]} 18. Be5 {[%emt 0:02:02]} f6 {[%emt 0:06:26]} 19. Bxd5 {[%emt 0:01:19]} Bxd5 {[%emt 0:02:49]} 20. Nxd5 {[%emt 0:00:27]} exd5 {[%emt 0:00:32]} 21. Bd4 {[%emt 0:01:38]} Bxd4 {[%emt 0:01:01]} 22. Rxd4 {[%emt 0:00:26]} Rc5 {[%emt 0:02:00]} 23. Rhd1 {[%emt 0:01:08]} Qc7 {[%emt 0:05:26]} 24. h4 {[%emt 0:04:53]} Rc8 {[%emt 0:01:33]} 25. Qe6+ {[%emt 0:00:23]} Kf8 {[%emt 0:00:22]} 26. a3 {[%emt 0:00:25]} Rc1+ {[%emt 0:00:28]} 27. Rxc1 {[%emt 0:00:22]} Qxc1+ {[%emt 0:00:04]} 28. Ka2 {[%emt 0:00:06]} Rc2 {[%emt 0:00:13]} 29. Qd6+ {[%emt 0:00:20]} Ke8 {[%emt 0:00:11]} 30. Qb8+ {[%emt 0:00:28]} Kf7 {[%emt 0:01:40]} 31. Qxb7+ {[%emt 0:00:20]} Kg6 {[%emt 0:00:33]} 32. Rg4+ {[%emt 0:01:58]} Kh5 {[%emt 0:00:15]} 33. f3 {[%emt 0:00:28]} Qxe3 {[%emt 0:00:45]} 34. Qf7+ {[%emt 0:01:10]} g6 {[%emt 0:00:08]} 35. Qxh7+ {[%emt 0:00:20]} Qh6 {[%emt 0:00:08]} 36. Rg5+ {[%emt 0:00:47]} 1-0

[Event "Najdorf Memorial-A 2022"]
[Site "Warsaw"]
[Date "2022.07.09"]
[Round "1.2"]
[White "Kutowski, Marcel"]
[Black "Jarmula, Lukasz"]
[Result "0-1"]
[ECO "B15"]
[WhiteElo "1961"]
[BlackElo "2452"]
[Annotator "RC"]
[PlyCount "56"]
[EventDate "2022.07.09"]
[EventType "swiss"]
[EventCountry "POL"]
[SourceTitle "playchess.com"]
[Source "ChessBase"]
[SourceQuality "1"]
[TimeControl "40/5400+30:1800+30"]

1. e4 {[%emt 0:00:03]} c6 {[%emt 0:00:07]} 2. d4 {[%emt 0:00:17]} d5 {[%emt 0:00:06]} 3. Nc3 {[%emt 0:00:04]} dxe4 {[%emt 0:00:05]} 4. Nxe4 {[%emt 0:00:04]} Nf6 {[%emt 0:00:08]} 5. Nxf6+ {[%emt 0:00:52]} exf6 {[%emt 0:00:04]} 6. c3 {[%emt 0:00:05]} Bd6 {[%emt 0:00:07]} 7. Bd3 {[%emt 0:00:13]} O-O {[%emt 0:00:07]} 8. Ne2 {[%emt 0:02:18]} Re8 {[%emt 0:00:21]} 9. O-O {[%emt 0:00:28]} Qc7 {[%emt 0:00:20]} 10. h3 {[%emt 0:03:53]} Nd7 {[%emt 0:00:34]} 11. Qc2 {[%emt 0:00:33]} Nf8 {[%emt 0:00:51]} 12. c4 {[%emt 0:00:44]} Ng6 {[%emt 0:02:40]} 13. Be3 {[%emt 0:08:38]} Be6 {[%emt 0:00:51]} 14. Rad1 {[%emt 0:02:44]} Rad8 {[%emt 0:02:24]} 15. Nc3 {[%emt 0:13:05]} Qc8 {[%emt 0:03:20]} 16. Ne4 {[%emt 0:06:15]} Bb8 {[%emt 0:02:40]} 17. f4 {[%emt 0:10:32]} Bxh3 {[%emt 0:11:13]} 18. gxh3 {[%emt 0:03:23]} f5 {[%emt 0:00:22]} 19. Nf6+ {[%emt 0:00:55]} gxf6 {[%emt 0:00:07]} 20. Bxf5 {[%emt 0:00:07]} Qc7 {[%emt 0:00:05]} 21. Qf2 {[%emt 0:05:48]} Qa5 {[%emt 0:03:10]} 22. Bc2 {[%emt 0:02:19]} Qh5 {[%emt 0:03:44]} 23. f5 {[%emt 0:06:47]} Qxh3 {[%emt 0:03:41]} 24. Rd3 {[%emt 0:03:23]} Re4 {[%emt 0:07:50]} 25. Bf4 {[%emt 0:05:06]} Nxf4 {[%emt 0:01:39]} 26. Rg3+ {[%emt 0:01:57]} Kh8 {[%emt 0:00:24]} 27. Bxe4 {[%emt 0:00:12]} Qxg3+ {[%emt 0:00:10]} 28. Qxg3 {[%emt 0:01:11]} Ne2+ {[%emt 0:00:06]} 0-1

[Event "Najdorf Memorial-A 2022"]
[Site "Warsaw"]
[Date "2022.07.09"]
[Round "1.3"]
[White "Pacan-Milej, Kosma"]
[Black "Jedrusik, Adam"]
[Result "1-0"]
[ECO "D10"]
[WhiteElo "2412"]
[BlackElo "1960"]
[Annotator "RC"]
[PlyCount "65"]
[EventDate "2022.07.09"]
[EventType "swiss"]
[EventCountry "POL"]
[SourceTitle "playchess.com"]
[Source "ChessBase"]
[SourceQuality "1"]
[TimeControl "40/5400+30:1800+30"]

1. d4 {[%emt 0:00:02]} d5 {[%emt 0:00:04]} 2. c4 {[%emt 0:00:40]} c6 {[%emt 0:00:01]} 3. Nc3 {[%emt 0:00:09]} Nf6 {[%emt 0:00:06]} 4. e3 {[%emt 0:00:06]} a6 {[%emt 0:00:48]} 5. Nf3 {[%emt 0:02:33]} Bf5 {[%emt 0:01:52]} 6. Be2 {[%emt 0:14:54]} e6 {[%emt 0:02:39]} 7. O-O {[%emt 0:02:23]} Bd6 {[%emt 0:03:52]} 8. Nh4 {[%emt 0:14:28]} Be4 {[%emt 0:01:14]} 9. g3 {[%emt 0:01:44]} Nbd7 {[%emt 0:04:06]} 10. b3 {[%emt 0:01:33]} Qe7 {[%emt 0:05:37]} 11. Bb2 {[%emt 0:03:24]} g5 {[%emt 0:06:21]} 12. Nf3 {[%emt 0:03:23]} h6 {[%emt 0:03:10]} 13. Nxe4 {[%emt 0:03:06]} Nxe4 {[%emt 0:00:27]} 14. Bd3 {[%emt 0:05:37]} f5 {[%emt 0:12:09]} 15. Ne5 {[%emt 0:10:17]} Bxe5 {[%emt 0:04:49]} 16. dxe5 {[%emt 0:00:08]} g4 {[%emt 0:01:11]} 17. cxd5 {[%emt 0:06:58]} cxd5 {[%emt 0:04:08]} 18. Rc1 {[%emt 0:07:31]} Ng5 {[%emt 0:03:57]} 19. Be2 {[%emt 0:03:18]} Qd8 {[%emt 0:08:17]} 20. Qc2 {[%emt 0:05:40]} h5 {[%emt 0:04:39]} 21. Qc7 {[%emt 0:07:55]} h4 {[%emt 0:10:45]} 22. Qd6 {[%emt 0:01:04]} hxg3 {[%emt 0:01:24]} 23. fxg3 {[%emt 0:00:10]} Nb8 {[%emt 0:06:30]} 24. Rc7 {[%emt 0:01:07]} Rh7 {[%emt 0:00:31]} 25. Rxh7 {[%emt 0:01:55]} Qxd6 {[%emt 0:00:10]} 26. Rh8+ {[%emt 0:00:08]} Qf8 {[%emt 0:00:06]} 27. Rxf8+ {[%emt 0:00:04]} Kxf8 {[%emt 0:00:02]} 28. Bxg4 {[%emt 0:00:06]} Ke7 {[%emt 0:00:20]} 29. Be2 {[%emt 0:01:24]} Nc6 {[%emt 0:00:05]} 30. g4 {[%emt 0:01:41]} Rg8 {[%emt 0:01:50]} 31. gxf5 {[%emt 0:00:47]} Nh3+ {[%emt 0:00:16]} 32. Kh1 {[%emt 0:00:07]} exf5 {[%emt 0:00:02]} 33. Bd3 {[%emt 0:01:02]} 1-0

[Event "Najdorf Memorial-A 2022"]
[Site "Warsaw"]
[Date "2022.07.09"]
[Round "1.3"]
[White "Spicak, Krzysztof"]
[Black "Adamski, Jan"]
[Result "1-0"]
[ECO "B20"]
[WhiteElo "1858"]
[BlackElo "2136"]
[Annotator "RC"]
[PlyCount "78"]
[EventDate "2022.07.09"]
[EventType "swiss"]
[EventCountry "POL"]
[SourceTitle "playchess.com"]
[Source "ChessBase"]
[SourceQuality "1"]
[TimeControl "40/5400+30:1800+30"]

1. e4 c5 2. b3 d5 3. e5 Nc6 4. Bb2 Bf5 5. Bb5 Rc8 6. Ne2 e6 7. Ng3 Nge7 8. Nxf5 Nxf5 9. O-O Be7 10. Bd3 O-O 11. Bxf5 exf5 12. f4 Qd7 13. d3 f6 14. exf6 Bxf6 15. Bxf6 Rxf6 16. Nd2 Qd6 17. g3 Re6 18. Re1 Rce8 19. Nf3 Rxe1+ 20. Nxe1 Qe6 21. Kf1 h6 22. Qd2 Qf6 23. Rd1 Nd4 24. Qg2 Qf7 25. Rd2 Qe6 26. Qf2 b6 27. a4 Kf7 28. Ng2 a6 29. h3 b5 30. axb5 axb5 31. b4 Qb6 32. c3 Ne6 33. Re2 d4 34. bxc5 Qxc5 35. cxd4 Nxd4 36. Rxe8 Kxe8 37. Qe3+ Kd7 38. Nh4 Qd5 39. Kf2 Qa2+ 1-0

[Event "Najdorf Memorial-A 2022"]
[Site "Warsaw"]
[Date "2022.07.09"]
[Round "1.4"]
[White "Musial, Tomasz"]
[Black "Hemmerling, Jaroslaw"]
[Result "1-0"]
[ECO "D30"]
[WhiteElo "2131"]
[BlackElo "1854"]
[Annotator "NA COMBH"]
[PlyCount "67"]
[EventDate "2022.07.09"]
[EventType "swiss"]
[EventCountry "POL"]
[SourceTitle "playchess.com"]
[Source "ChessBase"]
[SourceQuality "1"]
[TimeControl "40/5400+30:1800+30"]

1. d4 {[%emt 0:00:03]} d5 {[%emt 0:00:02]} 2. c4 {[%emt 0:00:12]} e6 {[%emt 0:00:05]} 3. Nf3 {[%emt 0:00:07]} Nf6 {[%emt 0:00:05]} 4. g3 {[%emt 0:00:42]} Bb4+ {[%emt 0:00:09]} 5. Nbd2 {[%emt 0:00:26]} O-O {[%emt 0:02:12]} 6. Bg2 {[%emt 0:02:25]} c6 {[%emt 0:04:13]} 7. O-O {[%emt 0:00:57]} Be7 {[%emt 0:02:32]} 8. Qc2 {[%emt 0:02:00]} Nbd7 {[%emt 0:00:22]} 9. e4 dxe4 {[%emt 0:00:09]} 10. Nxe4 {[%emt 0:01:09]} Nxe4 {[%emt 0:00:23]} 11. Qxe4 {[%emt 0:00:08]} c5 {[%emt 0:04:22]} 12. Rd1 {[%emt 0:02:41]} cxd4 {[%emt 0:00:20]} 13. Nxd4 {[%emt 0:01:16]} Qb6 {[%emt 0:09:15]} 14. Be3 {[%emt 0:09:28]} Qxb2 {[%emt 0:15:19]} 15. Rab1 {[%emt 0:12:33]} Qa3 {[%emt 0:19:22]} 16. Nb5 {[%emt 0:08:16]} Qa5 {[%emt 0:10:02]} 17. Bd2 {[%emt 0:03:15]} Qb6 {[%emt 0:04:27]} 18. Bf4 {[%emt 0:02:24]} Qc5 {[%emt 0:11:26]} 19. Be3 {[%emt 0:06:51]} Qe5 {[%emt 0:00:35]} 20. Qxe5 {[%emt 0:00:23]} Nxe5 {[%emt 0:00:03]} 21. Nc7 {[%emt 0:00:07]} Rb8 {[%emt 0:00:56]} 22. Bxa7 {[%emt 0:00:13]} Nd7 {[%emt 0:11:07]} 23. Bxb8 {[%emt 0:01:43]} Nxb8 {[%emt 0:00:02]} 24. Bxb7 {[%emt 0:00:11]} Bxb7 {[%emt 0:00:16]} 25. Rxb7 {[%emt 0:00:07]} Bf6 {[%emt 0:01:04]} 26. Rdb1 {[%emt 0:03:58]} Nc6 {[%emt 0:00:21]} 27. R7b6 {[%emt 0:01:52]} Ne5 {[%emt 0:00:42]} 28. c5 {[%emt 0:00:56]} Nd3 {[%emt 0:00:21]} 29. c6 {[%emt 0:00:38]} Bd4 {[%emt 0:00:03]} 30. Rb8 {[%emt 0:00:11]} Nxf2 {[%emt 0:00:50]} 31. Rxf8+ {[%emt 0:00:41]} Kxf8 {[%emt 0:00:02]} 32. Rb8+ {[%emt 0:00:35]} Ke7 {[%emt 0:00:08]} 33. Re8+ {[%emt 0:00:43]} Kf6 {[%emt 0:00:36]} 34. Nb5 {[%emt 0:00:08]} 1-0

[Event "Najdorf Memorial-A 2022"]
[Site "Warsaw"]
[Date "2022.07.09"]
[Round "1.4"]
[White "Vanduyfhuys, Igor"]
[Black "Romanishin, Oleg M"]
[Result "0-1"]
[ECO "C55"]
[WhiteElo "1959"]
[BlackElo "2404"]
[Annotator "RC"]
[PlyCount "58"]
[EventDate "2022.07.09"]
[EventType "swiss"]
[EventCountry "POL"]
[SourceTitle "playchess.com"]
[Source "ChessBase"]
[SourceQuality "1"]
[TimeControl "40/5400+30:1800+30"]

1. e4 {[%emt 0:00:02]} e5 {[%emt 0:00:10]} 2. Nf3 {[%emt 0:00:05]} Nc6 {[%emt 0:00:04]} 3. Bc4 {[%emt 0:00:04]} Nf6 {[%emt 0:00:04]} 4. d3 {[%emt 0:00:08]} Be7 {[%emt 0:00:11]} 5. c3 {[%emt 0:00:13]} O-O {[%emt 0:01:03]} 6. Nbd2 {[%emt 0:00:04]} d6 {[%emt 0:06:57]} 7. Bb3 {[%emt 0:00:46]} a5 {[%emt 0:00:16]} 8. Nf1 {[%emt 0:01:31]} b5 {[%emt 0:01:54]} 9. Ng3 {[%emt 0:04:28]} a4 {[%emt 0:00:23]} 10. Bc2 {[%emt 0:00:05]} d5 {[%emt 0:08:28]} 11. Qe2 {[%emt 0:04:09]} d4 {[%emt 0:04:35]} 12. O-O {[%emt 0:06:18]} dxc3 {[%emt 0:26:08]} 13. bxc3 {[%emt 0:06:14]} b4 {[%emt 0:00:42]} 14. Bd2 {[%emt 0:05:17]} Be6 {[%emt 0:02:04]} 15. cxb4 {[%emt 0:07:15]} Nxb4 {[%emt 0:00:12]} 16. Bc3 {[%emt 0:00:36]} Nxa2 {[%emt 0:08:59]} 17. Bxe5 {[%emt 0:02:32]} Nd7 {[%emt 0:00:12]} 18. Nd4 {[%emt 0:13:11]} Bg4 {[%emt 0:03:46]} 19. Qxg4 {[%emt 0:06:07]} Nxe5 {[%emt 0:00:13]} 20. Qh5 {[%emt 0:00:59]} Nb4 {[%emt 0:09:50]} 21. Qxe5 {[%emt 0:11:06]} Bf6 {[%emt 0:01:01]} 22. Qb5 {[%emt 0:00:56]} Qxd4 {[%emt 0:01:34]} 23. Rxa4 {[%emt 0:05:17]} Rab8 {[%emt 0:04:55]} 24. Qa5 {[%emt 0:00:27]} c6 {[%emt 0:10:06]} 25. Rb1 {[%emt 0:09:37]} c5 {[%emt 0:00:23]} 26. Bd1 {[%emt 0:10:39]} Qxd3 {[%emt 0:00:25]} 27. Rc1 {[%emt 0:00:13]} Qd2 {[%emt 0:01:26]} 28. Rb1 {[%emt 0:02:32]} Qe1+ {[%emt 0:00:58]} 29. Nf1 {[%emt 0:00:07]} Bd4 {[%emt 0:00:26]} 0-1

[Event "Najdorf Memorial-A 2022"]
[Site "Warsaw"]
[Date "2022.07.09"]
[Round "1.5"]
[White "Golubka, Petro"]
[Black "Iwanczuk, Krzysztof"]
[Result "1-0"]
[ECO "B20"]
[WhiteElo "2378"]
[BlackElo "1947"]
[Annotator "RC"]
[PlyCount "85"]
[EventDate "2022.07.09"]
[EventType "swiss"]
[EventCountry "POL"]
[SourceTitle "playchess.com"]
[Source "ChessBase"]
[SourceQuality "1"]
[TimeControl "40/5400+30:1800+30"]

1. e4 {[%emt 0:00:06]} c5 {[%emt 0:00:14]} 2. a3 {[%emt 0:00:23]} g6 {[%emt 0:00:46]} 3. Nf3 {[%emt 0:00:16]} Bg7 {[%emt 0:00:33]} 4. d4 {[%emt 0:00:29]} cxd4 {[%emt 0:00:17]} 5. Nxd4 {[%emt 0:00:04]} Nf6 {[%emt 0:03:46]} 6. Nc3 {[%emt 0:00:12]} d6 {[%emt 0:03:00]} 7. Bd3 {[%emt 0:00:49]} Nc6 {[%emt 0:00:35]} 8. Nde2 {[%emt 0:00:12]} O-O {[%emt 0:00:40]} 9. O-O {[%emt 0:00:03]} d5 {[%emt 0:04:14]} 10. exd5 {[%emt 0:01:36]} Nxd5 {[%emt 0:00:28]} 11. Bd2 {[%emt 0:00:40]} e5 {[%emt 0:08:00]} 12. Re1 {[%emt 0:02:26]} h6 {[%emt 0:05:31]} 13. Nxd5 {[%emt 0:03:28]} Qxd5 {[%emt 0:00:07]} 14. Nc3 {[%emt 0:00:07]} Qd8 {[%emt 0:04:44]} 15. Be3 {[%emt 0:00:25]} Be6 {[%emt 0:03:14]} 16. Qd2 {[%emt 0:03:01]} Kh7 {[%emt 0:00:47]} 17. Rad1 {[%emt 0:01:19]} f5 {[%emt 0:05:14]} 18. f3 {[%emt 0:00:33]} Qf6 {[%emt 0:01:41]} 19. Qe2 {[%emt 0:04:56]} Rac8 {[%emt 0:13:47]} 20. Nb5 {[%emt 0:03:47]} b6 {[%emt 0:09:18]} 21. Nd6 {[%emt 0:07:27]} Rcd8 {[%emt 0:00:08]} 22. Bb5 {[%emt 0:01:09]} Ne7 {[%emt 0:00:44]} 23. c4 {[%emt 0:03:08]} Bg8 {[%emt 0:04:38]} 24. Nb7 {[%emt 0:04:50]} Rb8 {[%emt 0:04:29]} 25. Ba6 {[%emt 0:08:01]} Qc6 {[%emt 0:03:13]} 26. Rd6 {[%emt 0:01:54]} Qc7 {[%emt 0:00:34]} 27. Red1 {[%emt 0:00:38]} Bxc4 {[%emt 0:11:15]} 28. Bxc4 {[%emt 0:21:37]} Rxb7 {[%emt 0:00:17]} 29. Ba6 {[%emt 0:03:00]} Nc8 {[%emt 0:00:08]} 30. R6d2 {[%emt 0:03:06]} Rb8 {[%emt 0:00:22]} 31. Rd7 {[%emt 0:01:48]} Qc6 {[%emt 0:00:10]} 32. Bb5 {[%emt 0:00:26]} Qf6 {[%emt 0:01:28]} 33. f4 {[%emt 0:00:21]} Rf7 {[%emt 0:04:58]} 34. fxe5 {[%emt 0:00:28]} Qe6 {[%emt 0:00:04]} 35. Qc4 {[%emt 0:02:43]} Rxd7 {[%emt 0:00:49]} 36. Rxd7 {[%emt 0:00:08]} Qxc4 {[%emt 0:02:13]} 37. Bxc4 {[%emt 0:00:09]} b5 {[%emt 0:00:10]} 38. Bb3 {[%emt 0:00:37]} g5 {[%emt 0:01:45]} 39. Bd4 {[%emt 0:01:25]} Nb6 {[%emt 0:01:32]} 40. Rxa7 {[%emt 0:00:00]} Kh8 {[%emt 0:00:00]} 41. Kf1 {[%emt 0:01:52]} Nc4 {[%emt 0:00:30]} 42. Bxc4 {[%emt 0:00:21]} bxc4 {[%emt 0:00:06]} 43. Rc7 {[%emt 0:00:23]} 1-0